fUST/lending_fUST_20250531
["ID","MTS","AMOUNT","RATE_DAILY","PERIOD"]
[363368382,1748699457878,-190.2455167,0.00018356,2]
[363368383,1748699457888,-686.1,0.00018356,2]
[363368384,1748699457897,-151.0,0.00018356,2]
[363368385,1748699457907,-430.0,0.00018356,2]
[363368386,1748699457916,-430.0,0.00018356,2]
[363368387,1748699457925,-430.0,0.00018356,2]
[363368388,1748699457935,-492.0,0.00018356,2]
[363368389,1748699457944,-430.0,0.00018356,2]
[363368390,1748699457954,-430.0,0.00018356,2]
[363368391,1748699457963,-430.0,0.00018356,2]
[363368392,1748699457973,-430.0,0.00018356,2]
[363368393,1748699457983,-430.0,0.00018356,2]
[363368394,1748699457993,-200.86877407,0.00018356,2]
[363368395,1748699458002,-430.0,0.00018356,2]
[363368396,1748699458012,-1066.43,0.00018356,2]
[363368397,1748699458021,-900.64,0.00018356,2]
[363368398,1748699458030,-430.0,0.00018356,2]
[363368399,1748699458040,-430.0,0.00018356,2]
[363368400,1748699458050,-430.0,0.00018356,2]
[363368401,1748699458059,-570.58,0.00018356,2]
[363368402,1748699458068,-542.98,0.00018356,2]
[363368403,1748699458078,-430.0,0.00018356,2]
[363368404,1748699458087,-430.0,0.00018356,2]
[363368405,1748699458098,-430.0,0.00018356,2]
[363368406,1748699458107,-430.0,0.00018356,2]
[363368407,1748699458118,-424.74852935,0.00018356,2]
[363368408,1748699458128,-1500.0,0.00018408,2]
[363368409,1748699458138,-1276.82517103,0.00018555,2]
[363368410,1748699458148,-430.0,0.0001863,2]
[363368411,1748699458157,-430.0,0.0001863,2]
[363368412,1748699458166,-430.0,0.0001863,2]
[363368413,1748699458176,-430.0,0.0001863,2]
[363368414,1748699458186,-430.0,0.0001863,2]
[363368415,1748699458196,-151.0,0.0001863,2]
[363368416,1748699458206,-430.0,0.0001863,2]
[363368417,1748699458215,-151.0,0.0001863,2]
[363368418,1748699458224,-430.0,0.0001863,2]
[363368419,1748699458234,-179.646079,0.0001863,2]
[363368420,1748699458243,-179.646079,0.0001863,2]
[363368421,1748699458254,-430.0,0.0001863,2]
[363368422,1748699458263,-430.0,0.0001863,2]
[363368423,1748699458273,-430.0,0.0001863,2]
[363368424,1748699458284,-430.0,0.0001863,2]
[363368425,1748699458293,-430.0,0.0001863,2]
[363368426,1748699458303,-430.0,0.0001863,2]
[363368427,1748699458313,-430.0,0.0001863,2]
[363368428,1748699458323,-188.1496112,0.0001863,2]
[363368429,1748699458332,-430.0,0.0001863,2]
[363368430,1748699458342,-430.0,0.0001863,2]
[363368431,1748699458351,-432.28,0.0001863,2]
[363368432,1748699458360,-430.0,0.0001863,2]
[363368433,1748699458369,-430.0,0.0001863,2]
[363368434,1748699458379,-430.0,0.0001863,2]
[363368435,1748699458389,-430.0,0.0001863,2]
[363368436,1748699458398,-430.0,0.0001863,2]
[363368437,1748699458408,-430.0,0.0001863,2]
[363368438,1748699458418,-430.0,0.0001863,2]
[363368439,1748699458429,-430.0,0.0001863,2]
[363368440,1748699458441,-430.0,0.0001863,2]
[363368441,1748699458452,-430.0,0.0001863,2]
[363368442,1748699458462,-430.0,0.0001863,2]
[363368443,1748699458472,-430.0,0.0001863,2]
[363368444,1748699458481,-430.0,0.0001863,2]
[363368445,1748699458491,-430.0,0.0001863,2]
[363368446,1748699458501,-430.0,0.0001863,2]
[363368447,1748699458511,-2616.21,0.0001863,2]
[363368448,1748699458521,-1081.01,0.0001863,2]
[363368449,1748699458530,-430.0,0.0001863,2]
[363368450,1748699458540,-430.0,0.0001863,2]
[363368451,1748699458550,-2235.59,0.0001863,2]
[363368452,1748699458559,-430.0,0.0001863,2]
[363368453,1748699458569,-430.0,0.0001863,2]
[363368454,1748699458579,-430.0,0.0001863,2]
[363368455,1748699458588,-430.0,0.0001863,2]
[363368456,1748699458598,-430.0,0.0001863,2]
[363368457,1748699458607,-430.0,0.0001863,2]
[363368458,1748699458617,-430.0,0.0001863,2]
[363368459,1748699458627,-987.39,0.0001863,2]
[363368460,1748699458637,-430.0,0.0001863,2]
[363368461,1748699458646,-430.0,0.0001863,2]
[363368462,1748699458658,-430.0,0.0001863,2]
[363368463,1748699458670,-430.0,0.0001863,2]
[363368464,1748699458684,-2447.5,0.0001863,2]
[363368465,1748699458694,-430.0,0.0001863,2]
[363368466,1748699458703,-430.0,0.0001863,2]
[363368467,1748699458714,-430.0,0.0001863,2]
[363368468,1748699458724,-430.0,0.0001863,2]
[363368469,1748699458734,-430.0,0.0001863,2]
[363368470,1748699458744,-430.0,0.0001863,2]
[363368471,1748699458755,-430.0,0.0001863,2]
[363368472,1748699458764,-686.1,0.0001863,2]
[363368473,1748699458774,-430.0,0.0001863,2]
[363368474,1748699458785,-162.045137,0.0001863,2]
[363368475,1748699458794,-430.0,0.0001863,2]
[363368476,1748699458804,-430.0,0.0001863,2]
[363368477,1748699458813,-492.0,0.0001863,2]
[363368478,1748699458823,-430.0,0.0001863,2]
[363368479,1748699458832,-162.045137,0.0001863,2]
[363368480,1748699458842,-317.87427809,0.0001863,2]
[363368481,1748699458851,-430.0,0.0001863,2]
[363368482,1748699458861,-430.0,0.0001863,2]
[363368483,1748699458871,-430.0,0.0001863,2]
[363368484,1748699458881,-430.0,0.0001863,2]
[363368485,1748699458891,-1066.43,0.0001863,2]
[363368486,1748699458901,-900.64,0.0001863,2]
[363368487,1748699458911,-430.0,0.0001863,2]
[363368488,1748699458921,-430.0,0.0001863,2]
[363368489,1748699458931,-430.0,0.0001863,2]
[363368490,1748699458941,-570.58,0.0001863,2]
[363368491,1748699458950,-542.98,0.0001863,2]
[363368492,1748699458960,-430.0,0.0001863,2]
[363368493,1748699458969,-430.0,0.0001863,2]
[363368494,1748699458979,-430.0,0.0001863,2]
[363368495,1748699458988,-430.0,0.0001863,2]
[363368496,1748699459071,-1276.82517103,0.00018831,2]
[363368497,1748699459081,-1878.99575601,0.000189,2]
[363368498,1748699459091,-1820.62,0.00018903,2]
[363368499,1748699459100,-1820.62,0.00018903,2]
[363368500,1748699459109,-1820.62,0.00018903,2]
[363368501,1748699459118,-1820.62,0.00018903,2]
[363368502,1748699459128,-1820.65319661,0.00018903,2]
[363368503,1748699459139,-430.0,0.00018904,2]
[363368504,1748699459149,-456.08,0.00018904,2]
[363368505,1748699459159,-430.0,0.00018904,2]
[363368506,1748699459168,-430.0,0.00018904,2]
[363368507,1748699459178,-430.0,0.00018904,2]
[363368508,1748699459187,-430.0,0.00018904,2]
[363368509,1748699459197,-430.0,0.00018904,2]
[363368510,1748699459207,-430.0,0.00018904,2]
[363368511,1748699459217,-430.0,0.00018904,2]
[363368512,1748699459227,-430.0,0.00018904,2]
[363368513,1748699459238,-432.28,0.00018904,2]
[363368514,1748699459250,-430.0,0.00018904,2]
[363368515,1748699459262,-430.0,0.00018904,2]
[363368516,1748699459272,-430.0,0.00018904,2]
[363368517,1748699459281,-430.0,0.00018904,2]
[363368518,1748699459291,-430.0,0.00018904,2]
[363368519,1748699459301,-430.0,0.00018904,2]
[363368520,1748699459310,-430.0,0.00018904,2]
[363368521,1748699459320,-430.0,0.00018904,2]
[363368522,1748699459330,-430.0,0.00018904,2]
[363368523,1748699459340,-430.0,0.00018904,2]
[363368524,1748699459350,-430.0,0.00018904,2]
[363368525,1748699459360,-430.0,0.00018904,2]
[363368526,1748699459369,-430.0,0.00018904,2]
[363368527,1748699459379,-2616.21,0.00018904,2]
[363368528,1748699459389,-1081.01,0.00018904,2]
[363368529,1748699459399,-430.0,0.00018904,2]
[363368530,1748699459408,-430.0,0.00018904,2]
[363368531,1748699459418,-2235.59,0.00018904,2]
[363368532,1748699459427,-430.0,0.00018904,2]
[363368533,1748699459436,-430.0,0.00018904,2]
[363368534,1748699459447,-430.0,0.00018904,2]
[363368535,1748699459456,-430.0,0.00018904,2]
[363368536,1748699459466,-430.0,0.00018904,2]
[363368537,1748699459475,-430.0,0.00018904,2]
[363368538,1748699459484,-523.0,0.00018904,2]
[363368539,1748699459493,-987.39,0.00018904,2]
[363368540,1748699459502,-430.0,0.00018904,2]
[363368541,1748699459511,-430.0,0.00018904,2]
[363368542,1748699459519,-430.0,0.00018904,2]
[363368543,1748699459528,-490.0,0.00018904,2]
[363368544,1748699459537,-2447.5,0.00018904,2]
[363368545,1748699459547,-176.5898223,0.00018904,2]
[363368546,1748699459556,-430.0,0.00018904,2]
[363368547,1748699459565,-430.0,0.00018904,2]
[363368548,1748699459574,-430.0,0.00018904,2]
[363368549,1748699459583,-686.1,0.00018904,2]
[363368550,1748699459592,-430.0,0.00018904,2]
[363368551,1748699459601,-466.41081921,0.00018904,2]
[363368552,1748699459610,-430.0,0.00018904,2]
[363368553,1748699459619,-492.0,0.00018904,2]
[363368554,1748699459632,-430.0,0.00018904,2]
[363368555,1748699459654,-430.0,0.00018904,2]
[363368556,1748699459671,-430.0,0.00018904,2]
[363368557,1748699459694,-430.0,0.00018904,2]
[363368558,1748699459713,-393.24013304,0.00018904,2]
[363368559,1748699459732,-1066.43,0.00018904,2]
[363368560,1748699459750,-900.64,0.00018904,2]
[363368561,1748699459767,-430.0,0.00018904,2]
[363368562,1748699459781,-430.0,0.00018904,2]
[363368563,1748699459801,-570.58,0.00018904,2]
[363368564,1748699459822,-542.98,0.00018904,2]
[363368565,1748699459838,-430.0,0.00018904,2]
[363368566,1748699459853,-430.0,0.00018904,2]
[363368567,1748699459871,-430.0,0.00018904,2]
[363368568,1748699459885,-500.0,0.00018956,2]
[363368569,1748699459900,-151.0,0.00019103,2]
[363368570,1748699459916,-151.0,0.00019103,2]
[363368571,1748699459930,-151.0,0.00019103,2]
[363368572,1748699459945,-344.75665,0.00019103,2]
[363368573,1748699459959,-344.75665,0.00019103,2]
[363368574,1748699459973,-151.0,0.00019103,2]
[363368575,1748699459988,-1276.82517103,0.00019107,2]
[363368576,1748699460002,-160.0,0.00019177,2]
[363368577,1748699460016,-430.0,0.00019178,2]
[363368578,1748699460031,-430.0,0.00019178,2]
[363368579,1748699460045,-430.0,0.00019178,2]
[363368580,1748699460061,-430.0,0.00019178,2]
[363368581,1748699460077,-430.0,0.00019178,2]
[363368582,1748699460092,-430.0,0.00019178,2]
[363368583,1748699460107,-430.0,0.00019178,2]
[363368584,1748699460121,-430.0,0.00019178,2]
[363368585,1748699460136,-432.28,0.00019178,2]
[363368586,1748699460150,-430.0,0.00019178,2]
[363368587,1748699460165,-430.0,0.00019178,2]
[363368588,1748699460185,-569.83177003,0.00019178,2]
[363368589,1748699460199,-430.0,0.00019178,2]
[363368590,1748699460214,-430.0,0.00019178,2]
[363368591,1748699460230,-430.0,0.00019178,2]
[363368592,1748699460244,-430.0,0.00019178,2]
[363368593,1748699460258,-430.0,0.00019178,2]
[363368594,1748699460273,-430.0,0.00019178,2]
[363368595,1748699460289,-256.7347077,0.00019178,2]
[363368596,1748699460305,-430.0,0.00019178,2]
[363368597,1748699460326,-430.0,0.00019178,2]
[363368598,1748699460342,-2616.21,0.00019178,2]
[363368599,1748699460359,-1081.01,0.00019178,2]
[363368600,1748699460373,-430.0,0.00019178,2]
[363368601,1748699460389,-430.0,0.00019178,2]
[363368602,1748699460405,-430.0,0.00019178,2]
[363368603,1748699460419,-430.0,0.00019178,2]
[363368604,1748699460434,-430.0,0.00019178,2]
[363368605,1748699460449,-430.0,0.00019178,2]
[363368606,1748699460464,-2235.59,0.00019178,2]
[363368607,1748699460479,-430.0,0.00019178,2]
[363368608,1748699460493,-430.0,0.00019178,2]
[363368609,1748699460508,-430.0,0.00019178,2]
[363368610,1748699460524,-430.0,0.00019178,2]
[363368611,1748699460539,-543.08013179,0.00019178,2]
[363368612,1748699460668,-430.0,0.00019178,2]
[363368613,1748699460682,-987.39,0.00019178,2]
[363368614,1748699460691,-430.0,0.00019178,2]
[363368615,1748699460701,-430.0,0.00019178,2]
[363368616,1748699460710,-2447.5,0.00019178,2]
[363368617,1748699460721,-430.0,0.00019178,2]
[363368618,1748699460731,-430.0,0.00019178,2]
[363368619,1748699460741,-430.0,0.00019178,2]
[363368620,1748699460750,-686.1,0.00019178,2]
[363368621,1748699460761,-430.0,0.00019178,2]
[363368622,1748699460771,-525.53587605,0.00019178,2]
[363368623,1748699460780,-492.0,0.00019178,2]
[363368624,1748699460790,-430.0,0.00019178,2]
[363368625,1748699460800,-430.0,0.00019178,2]
[363368626,1748699460810,-327.74782399,0.00019178,2]
[363368627,1748699460819,-430.0,0.00019178,2]
[363368628,1748699460829,-1066.43,0.00019178,2]
[363368629,1748699460838,-900.64,0.00019178,2]
[363368630,1748699460848,-430.0,0.00019178,2]
[363368631,1748699460858,-430.0,0.00019178,2]
[363368632,1748699460867,-570.58,0.00019178,2]
[363368633,1748699460877,-542.98,0.00019178,2]
[363368634,1748699460887,-430.0,0.00019178,2]
[363368635,1748699460897,-430.0,0.00019178,2]
[363368636,1748699460907,-430.0,0.00019178,2]
[363368637,1748699460916,-151.0,0.00019178,2]
[363368638,1748699460926,-169.319071,0.00019178,2]
[363368639,1748699460935,-151.0,0.00019205,2]
[363368640,1748699460944,-151.0,0.00019205,2]
[363368641,1748699460954,-151.0,0.00019205,2]
[363368642,1748699460963,-152.63117165,0.00019205,2]
[363368643,1748699460972,-151.0,0.00019205,2]
[363368644,1748699460982,-151.0,0.00019205,2]
[363368645,1748699460991,-151.0,0.00019205,2]
[363368646,1748699461000,-151.0,0.00019205,2]
[363368647,1748699461009,-151.0,0.00019205,2]
[363368648,1748699461019,-151.0,0.00019205,2]
[363368649,1748699461028,-151.0,0.00019205,2]
[363368650,1748699461037,-500.0,0.00019205,2]
[363368651,1748699461046,-500.0,0.00019232,2]
[363368652,1748699461055,-156.587,0.00019233,2]
[363368653,1748699461065,-500.0,0.0001926,2]
[363368654,1748699461074,-500.0,0.00019287,2]
[363368655,1748699461083,-162.380719,0.00019288,2]
[363368656,1748699461092,-500.0,0.00019315,2]
[363368657,1748699461101,-4663.48646117,0.00019329,2]
[363368658,1748699461111,-500.0,0.00019342,2]
[363368659,1748699461120,-168.3888056,0.00019343,2]
[363368660,1748699461130,-500.0,0.00019369,2]
[363368661,1748699461142,-1276.82517103,0.00019383,2]
[363368662,1748699461151,-500.0,0.00019397,2]
[363368663,1748699461161,-174.61919141,0.00019398,2]
[363368664,1748699461170,-500.0,0.00019424,2]
[363368665,1748699461180,-151.0,0.00019451,2]
[363368666,1748699461190,-430.0,0.00019451,2]
[363368667,1748699461199,-430.0,0.00019451,2]
[363368668,1748699461209,-490.75,0.00019451,2]
[363368669,1748699461219,-430.0,0.00019451,2]
[363368670,1748699461229,-430.0,0.00019451,2]
[363368671,1748699461239,-430.0,0.00019451,2]
[363368672,1748699461249,-987.04,0.00019451,2]
[363368673,1748699461258,-430.0,0.00019451,2]
[363368674,1748699461268,-1276.29,0.00019451,2]
[363368675,1748699461278,-430.0,0.00019451,2]
[363368676,1748699461287,-659.5,0.00019451,2]
[363368677,1748699461297,-430.0,0.00019451,2]
[363368678,1748699461307,-500.0,0.00019452,2]
[363368679,1748699461320,-430.0,0.00019452,2]
[363368680,1748699461336,-430.0,0.00019452,2]
[363368681,1748699461346,-430.0,0.00019452,2]
[363368682,1748699461355,-430.0,0.00019452,2]
[363368683,1748699461365,-430.0,0.00019452,2]
[363368684,1748699461375,-430.0,0.00019452,2]
[363368685,1748699461386,-430.0,0.00019452,2]
[363368686,1748699461396,-432.28,0.00019452,2]
[363368687,1748699461406,-566.79420935,0.00019452,2]
[363368688,1748699461415,-430.0,0.00019452,2]
[363368689,1748699461425,-430.0,0.00019452,2]
[363368690,1748699461436,-430.0,0.00019452,2]
[363368691,1748699461446,-237.17,0.00019452,2]
[363368692,1748699461461,-430.0,0.00019452,2]
[363368693,1748699461472,-430.0,0.00019452,2]
[363368694,1748699461482,-430.0,0.00019452,2]
[363368695,1748699461491,-2616.21,0.00019452,2]
[363368696,1748699461501,-1081.01,0.00019452,2]
[363368697,1748699461510,-430.0,0.00019452,2]
[363368698,1748699461521,-2235.59,0.00019452,2]
[363368699,1748699461530,-430.0,0.00019452,2]
[363368700,1748699461541,-430.0,0.00019452,2]
[363368701,1748699461551,-430.0,0.00019452,2]
[363368702,1748699461560,-430.0,0.00019452,2]
[363368703,1748699461570,-430.0,0.00019452,2]
[363368704,1748699461579,-987.39,0.00019452,2]
[363368705,1748699461589,-430.0,0.00019452,2]
[363368706,1748699461600,-2447.5,0.00019452,2]
[363368707,1748699461610,-430.0,0.00019452,2]
[363368708,1748699461619,-430.0,0.00019452,2]
[363368709,1748699461628,-686.1,0.00019452,2]
[363368710,1748699461639,-430.0,0.00019452,2]
[363368711,1748699461648,-492.0,0.00019452,2]
[363368712,1748699461659,-430.0,0.00019452,2]
[363368713,1748699461669,-430.0,0.00019452,2]
[363368714,1748699461680,-430.0,0.00019452,2]
[363368715,1748699461690,-1066.43,0.00019452,2]
[363368716,1748699461700,-900.64,0.00019452,2]
[363368717,1748699461709,-326.26,0.00019452,2]
[363368718,1748699461719,-430.0,0.00019452,2]
[363368719,1748699461728,-570.58,0.00019452,2]
[363368720,1748699461737,-542.98,0.00019452,2]
[363368721,1748699461747,-430.0,0.00019452,2]
[363368722,1748699461756,-430.0,0.00019452,2]
[363368723,1748699461766,-181.08010149,0.00019453,2]
[363368724,1748699461776,-500.0,0.00019479,2]
[363368725,1748699461785,-151.0,0.000195,2]
[363368726,1748699461795,-151.0,0.000195,2]
[363368727,1748699461804,-151.0,0.000195,2]
[363368728,1748699461813,-344.75665,0.000195,2]
[363368729,1748699461822,-344.75665,0.000195,2]
[363368730,1748699461831,-151.0,0.000195,2]
[363368731,1748699461841,-500.0,0.00019506,2]
[363368732,1748699461850,-187.78006525,0.00019508,2]
[363368733,1748699461859,-500.0,0.00019534,2]
[363368734,1748699461868,-198.257394,0.00019534,2]
[363368735,1748699461878,-198.257394,0.00019534,2]
[363368736,1748699461889,-151.0,0.00019534,2]
[363368737,1748699461898,-1722.700487,0.00019534,2]
[363368738,1748699461907,-456.863864,0.00019534,2]
[363368739,1748699461917,-1722.700487,0.00019534,2]
[363368740,1748699461926,-456.863864,0.00019534,2]
[363368741,1748699461935,-1014.997394,0.00019534,2]
[363368742,1748699461945,-1014.997394,0.00019534,2]
[363368743,1748699461955,-500.0,0.00019561,2]
[363368744,1748699461964,-194.72792766,0.00019563,2]
[363368745,1748699461974,-500.0,0.00019589,2]
[363368746,1748699461984,-537.31774589,0.00019616,2]
[363368747,1748699461993,-201.93286099,0.00019618,2]
[363368748,1748699462002,-485.0,0.00019626,2]
[363368749,1748699462014,-587.0,0.00019626,2]
[363368750,1748699462024,-1276.82517103,0.00019659,2]
[363368751,1748699462035,-209.40437684,0.00019673,2]
[363368752,1748699462044,-3836.83268083,0.00019697,2]
[363368753,1748699462054,-430.0,0.00019725,2]
[363368754,1748699462063,-430.0,0.00019725,2]
[363368755,1748699462075,-490.75,0.00019725,2]
[363368756,1748699462084,-430.0,0.00019725,2]
[363368757,1748699462094,-430.0,0.00019725,2]
[363368758,1748699462103,-430.0,0.00019725,2]
[363368759,1748699462113,-987.04,0.00019725,2]
[363368760,1748699462122,-430.0,0.00019725,2]
[363368761,1748699462132,-1276.29,0.00019725,2]
[363368762,1748699462142,-430.0,0.00019725,2]
[363368763,1748699462151,-659.5,0.00019725,2]
[363368764,1748699462161,-430.0,0.00019725,2]
[363368765,1748699462170,-430.0,0.00019726,2]
[363368766,1748699462180,-430.0,0.00019726,2]
[363368767,1748699462189,-533.27,0.00019726,2]
[363368768,1748699462198,-430.0,0.00019726,2]
[363368769,1748699462208,-476.0,0.00019726,2]
[363368770,1748699462218,-430.0,0.00019726,2]
[363368771,1748699462227,-432.28,0.00019726,2]
[363368772,1748699462237,-430.0,0.00019726,2]
[363368773,1748699462247,-430.0,0.00019726,2]
[363368774,1748699462258,-374.96,0.00019726,2]
[363368775,1748699462267,-430.0,0.00019726,2]
[363368776,1748699462276,-430.0,0.00019726,2]
[363368777,1748699462370,-430.0,0.00019726,2]
[363368778,1748699462380,-2616.21,0.00019726,2]
[363368779,1748699462391,-1081.01,0.00019726,2]
[363368780,1748699462400,-430.0,0.00019726,2]
[363368781,1748699462410,-2235.59,0.00019726,2]
[363368782,1748699462419,-430.0,0.00019726,2]
[363368783,1748699462429,-430.0,0.00019726,2]
[363368784,1748699462438,-430.0,0.00019726,2]
[363368785,1748699462447,-430.0,0.00019726,2]
[363368786,1748699462456,-430.0,0.00019726,2]
[363368787,1748699462466,-987.39,0.00019726,2]
[363368788,1748699462476,-430.0,0.00019726,2]
[363368789,1748699462486,-151.0,0.00019726,2]
[363368790,1748699462495,-2447.5,0.00019726,2]
[363368791,1748699462505,-430.0,0.00019726,2]
[363368792,1748699462515,-526.39,0.00019726,2]
[363368793,1748699462525,-686.1,0.00019726,2]
[363368794,1748699462534,-151.0,0.00019726,2]
[363368795,1748699462543,-430.0,0.00019726,2]
[363368796,1748699462553,-492.0,0.00019726,2]
[363368797,1748699462562,-430.0,0.00019726,2]
[363368798,1748699462571,-430.0,0.00019726,2]
[363368799,1748699462581,-430.0,0.00019726,2]
[363368800,1748699462591,-1066.43,0.00019726,2]
[363368801,1748699462600,-900.64,0.00019726,2]
[363368802,1748699462610,-430.0,0.00019726,2]
[363368803,1748699462620,-570.58,0.00019726,2]
[363368804,1748699462629,-542.98,0.00019726,2]
[363368805,1748699462640,-430.0,0.00019726,2]
[363368806,1748699462650,-430.0,0.00019726,2]
[363368807,1748699462659,-217.15233878,0.00019728,2]
[363368808,1748699462669,-500.0,0.0001975,2]
[363368809,1748699462681,-225.18697532,0.00019783,2]
[363368810,1748699462691,-2351.0,0.00019823,2]
[363368811,1748699462700,-233.51889341,0.00019838,2]
[363368812,1748699462709,-593.664,0.0001985,2]
[363368813,1748699462719,-500.0,0.0001985,2]
[363368814,1748699462730,-242.15909246,0.00019893,2]
[363368815,1748699462740,-1276.82517103,0.00019934,2]
[363368816,1748699462749,-251.11897888,0.00019948,2]
[363368817,1748699462760,-600.0,0.00019964,2]
[363368818,1748699462770,-430.0,0.00019999,2]
[363368819,1748699462779,-430.0,0.00019999,2]
[363368820,1748699462788,-490.75,0.00019999,2]
[363368821,1748699462798,-430.0,0.00019999,2]
[363368822,1748699462808,-430.0,0.00019999,2]
[363368823,1748699462818,-430.0,0.00019999,2]
[363368824,1748699462827,-987.04,0.00019999,2]
[363368825,1748699462837,-430.0,0.00019999,2]
[363368826,1748699462846,-1276.29,0.00019999,2]
[363368827,1748699462855,-495.00729806,0.00019999,2]
[363368828,1748699462865,-659.5,0.00019999,2]
[363368829,1748699462875,-430.0,0.00019999,2]
[363368830,1748699462884,-196.554865,0.0002,2]
[363368831,1748699462895,-151.0,0.0002,2]
[363368832,1748699462905,-151.0,0.0002,2]
[363368833,1748699462914,-344.75665,0.0002,2]
[363368834,1748699462924,-344.75665,0.0002,2]
[363368835,1748699462934,-151.0,0.0002,2]
[363368836,1748699462943,-160.0,0.0002,3]
[363368837,1748699462952,-430.0,0.0002,2]
[363368838,1748699462962,-430.0,0.0002,2]
[363368839,1748699462971,-430.0,0.0002,2]
[363368840,1748699462981,-432.28,0.0002,2]
[363368841,1748699462990,-430.0,0.0002,2]
[363368842,1748699462999,-430.0,0.0002,2]
[363368843,1748699463009,-430.0,0.0002,2]
[363368844,1748699463019,-430.0,0.0002,2]
[363368845,1748699463028,-430.0,0.0002,2]
[363368846,1748699463038,-2616.21,0.0002,2]
[363368847,1748699463048,-1081.01,0.0002,2]
[363368848,1748699463058,-430.0,0.0002,2]
[363368849,1748699463067,-2235.59,0.0002,2]
[363368850,1748699463077,-430.0,0.0002,2]
[363368851,1748699463088,-430.0,0.0002,2]
[363368852,1748699463097,-430.0,0.0002,2]
[363368853,1748699463107,-430.0,0.0002,2]
[363368854,1748699463117,-987.39,0.0002,2]
[363368855,1748699463127,-430.0,0.0002,2]
[363368856,1748699463137,-2447.5,0.0002,2]
[363368857,1748699463148,-430.0,0.0002,2]
[363368858,1748699463158,-686.1,0.0002,2]
[363368859,1748699463167,-430.0,0.0002,2]
[363368860,1748699463177,-492.0,0.0002,2]
[363368861,1748699463188,-430.0,0.0002,2]
[363368862,1748699463198,-430.0,0.0002,2]
[363368863,1748699463208,-430.0,0.0002,2]
[363368864,1748699463218,-4000.0,0.0002,4]
[363368865,1748699463228,-1066.43,0.0002,2]
[363368866,1748699463238,-900.64,0.0002,2]
[363368867,1748699463247,-430.0,0.0002,2]
[363368868,1748699463257,-570.58,0.0002,2]
[363368869,1748699463267,-542.98,0.0002,2]
[363368870,1748699463277,-430.0,0.0002,2]
[363368871,1748699463288,-260.4103811,0.00020003,2]
[363368872,1748699463299,-500.0,0.00020045,2]
[363368873,1748699463309,-270.0455652,0.00020058,2]
[363368874,1748699463320,-280.03725112,0.00020113,2]
[363368875,1748699463331,-290.39862941,0.00020168,2]
[363368876,1748699463342,-1276.82517103,0.0002021,2]
[363368877,1748699463352,-301.1433787,0.00020223,2]
[363368878,1748699463363,-151.0,0.00020273,2]
[363368879,1748699463375,-187.410191,0.00020273,2]
[363368880,1748699463386,-187.410191,0.00020273,2]
[363368881,1748699463402,-1037.332581,0.00020273,2]